fUSD/lending_fUSD_20240616
["ID","MTS","AMOUNT","RATE_DAILY","PERIOD"]
[329624354,1718514684776,-797.61,0.00022465,3]
[329624355,1718514684845,-500.0,0.00022465,3]
[329624356,1718514684906,-588.71,0.00022465,3]
[329624357,1718514684936,-500.0,0.00022465,3]
[329624358,1718514684956,-500.0,0.00022465,3]
[329624359,1718514684996,-2230.64,0.00022465,3]
[329624360,1718514685019,-1061.13,0.00022465,3]
[329624361,1718514685036,-500.0,0.00022465,3]
[329624362,1718514685057,-500.0,0.00022465,3]
[329624363,1718514685067,-9618.01,0.00022465,3]
[329624364,1718514685078,-500.0,0.00022465,3]
[329624365,1718514685102,-500.0,0.00022465,3]
[329624366,1718514685115,-500.0,0.00022465,3]
[329624367,1718514685146,-2383.54,0.00022465,3]
[329624368,1718514685158,-500.0,0.00022465,3]
[329624369,1718514685172,-500.0,0.00022465,3]
[329624370,1718514685183,-500.0,0.00022465,3]
[329624371,1718514685209,-860.94,0.00022465,3]
[329624372,1718514685245,-792.78,0.00022465,3]
[329624373,1718514685304,-4216.59,0.00022465,3]
[329624374,1718514685431,-858.57,0.00022465,3]
[329624375,1718514685467,-2109.27,0.00022465,3]
[329624376,1718514685480,-567.07,0.00022465,3]
[329624377,1718514685493,-500.0,0.00022465,3]
[329624378,1718514685506,-1400.62,0.00022465,3]
[329624379,1718514685520,-1037.47,0.00022465,3]
[329624380,1718514685532,-1574.3,0.00022465,3]
[329624381,1718514685545,-500.0,0.00022465,3]
[329624382,1718514685573,-500.0,0.00022465,3]
[329624383,1718514685584,-500.0,0.00022465,3]
[329624384,1718514685595,-500.0,0.00022465,3]
[329624385,1718514685606,-2771.95,0.00022465,3]
[329624386,1718514685622,-500.0,0.00022465,3]
[329624387,1718514685637,-3713.47,0.00022465,3]
[329624388,1718514685648,-1420.21,0.00022465,3]
[329624389,1718514685684,-534.45,0.00022465,3]
[329624390,1718514685704,-790.92,0.00022465,3]
[329624391,1718514685733,-500.0,0.00022465,3]
[329624392,1718514685745,-500.0,0.00022465,3]
[329624393,1718514685759,-1310.36,0.00022465,3]
[329624394,1718514685772,-500.0,0.00022465,3]
[329624395,1718514685782,-500.0,0.00022465,3]
[329624396,1718514685797,-633.25,0.00022465,3]
[329624397,1718514685821,-1378.93,0.00022465,3]
[329624398,1718514685833,-851.88,0.00022465,3]
[329624399,1718514685864,-500.0,0.00022465,3]
[329624400,1718514685903,-2966.95,0.00022465,3]
[329624401,1718514685921,-636.09,0.00022465,3]
[329624402,1718514685932,-712.87,0.00022465,3]
[329624403,1718514685945,-500.0,0.00022465,3]
[329624404,1718514685956,-827.77,0.00022465,3]
[329624405,1718514685970,-2232.36,0.00022465,3]
[329624406,1718514686000,-860.52,0.00022465,3]
[329624407,1718514686020,-2707.96,0.00022465,3]
[329624408,1718514686075,-614.18,0.00022465,3]
[329624409,1718514686092,-500.0,0.00022465,3]
[329624410,1718514686103,-2212.02,0.00022465,3]
[329624411,1718514686128,-500.0,0.00022465,3]
[329624412,1718514686152,-703.42,0.00022465,3]
[329624413,1718514686164,-721.36,0.00022465,3]
[329624414,1718514686176,-500.0,0.00022465,3]
[329624415,1718514686192,-500.0,0.00022465,3]
[329624416,1718514686208,-4360.28,0.00022465,3]
[329624417,1718514686244,-500.0,0.00022465,3]
[329624418,1718514686260,-2177.96,0.00022465,3]
[329624419,1718514686276,-500.0,0.00022465,3]
[329624420,1718514686287,-1356.14,0.00022465,3]
[329624421,1718514686301,-500.0,0.00022465,3]
[329624422,1718514686315,-578.68,0.00022465,3]
[329624423,1718514686326,-500.0,0.00022465,3]
[329624424,1718514686354,-500.0,0.00022465,3]
[329624425,1718514686365,-749.56,0.00022465,3]
[329624426,1718514686378,-500.0,0.00022465,3]
[329624427,1718514686398,-1848.29,0.00022465,3]
[329624428,1718514686409,-500.0,0.00022465,3]
[329624429,1718514686421,-1211.0,0.00022465,3]
[329624430,1718514686436,-500.0,0.00022465,3]
[329624431,1718514686447,-666.51,0.00022465,3]
[329624432,1718514686458,-1213.86,0.00022465,3]
[329624433,1718514686470,-578.04,0.00022465,3]
[329624434,1718514686484,-583.95,0.00022465,3]
[329624435,1718514686498,-500.0,0.00022465,3]
[329624436,1718514686513,-2709.96,0.00022465,3]
[329624437,1718514686553,-500.0,0.00022465,3]
[329624438,1718514686564,-494.50216154,0.00022465,3]
[329624439,1718514686577,-795.69,0.00022465,3]
[329624440,1718514686588,-500.0,0.00022465,3]
[329624441,1718514686599,-1483.55,0.00022465,3]
[329624442,1718514686619,-1309.75,0.00022465,3]
[329624443,1718514686632,-790.88,0.00022465,3]
[329624444,1718514686646,-500.0,0.00022465,3]
[329624445,1718514686659,-500.0,0.00022465,3]
[329624446,1718514686671,-555.11,0.00022465,3]
[329624447,1718514686696,-500.0,0.00022465,3]
[329624448,1718514686731,-1243.88,0.00022465,3]
[329624449,1718514686743,-3595.59,0.00022465,3]
[329624450,1718514686772,-500.0,0.00022465,3]
[329624451,1718514686785,-500.0,0.00022465,3]
[329624452,1718514686798,-500.0,0.00022465,3]
[329624453,1718514686808,-1564.83,0.00022465,3]
[329624454,1718514686820,-500.0,0.00022465,3]
[329624455,1718514686832,-1006.94,0.00022465,3]
[329624456,1718514686845,-500.0,0.00022465,3]
[329624457,1718514686864,-1366.9,0.00022465,3]
[329624458,1718514686878,-500.0,0.00022465,3]
[329624459,1718514686897,-500.0,0.00022465,3]
[329624460,1718514686908,-799.86,0.00022465,3]
[329624461,1718514686919,-523.6,0.00022465,3]
[329624462,1718514686929,-500.0,0.00022465,3]
[329624463,1718514686940,-729.35,0.00022465,3]
[329624464,1718514686951,-2013.29,0.00022465,3]
[329624465,1718514686962,-500.0,0.00022465,3]
[329624466,1718514686973,-500.0,0.00022465,3]
[329624467,1718514686984,-989.7,0.00022465,3]
[329624468,1718514686997,-1202.1,0.00022465,3]
[329624469,1718514687009,-1512.39,0.00022465,3]
[329624470,1718514687020,-500.0,0.00022465,3]
[329624471,1718514687033,-500.0,0.00022465,3]
[329624472,1718514687060,-500.0,0.00022465,3]
[329624473,1718514687083,-898.42,0.00022465,3]
[329624474,1718514687095,-680.39,0.00022465,3]
[329624475,1718514687122,-500.0,0.00022465,3]
[329624476,1718514687133,-651.97,0.00022465,3]
[329624477,1718514687143,-525.67,0.00022465,3]
[329624478,1718514687156,-500.0,0.00022465,3]
[329624479,1718514687167,-1084.0,0.00022465,3]
[329624480,1718514687185,-1217.87,0.00022465,3]
[329624481,1718514687195,-4820.64,0.00022465,3]
[329624482,1718514687207,-1818.54,0.00022465,3]
[329624483,1718514687217,-500.0,0.00022465,3]
[329624484,1718514687236,-633.1,0.00022465,3]
[329624485,1718514687247,-500.0,0.00022465,3]
[329624486,1718514687258,-2630.9,0.00022465,3]
[329624487,1718514687280,-1495.18,0.00022465,3]
[329624488,1718514687293,-500.78,0.00022465,3]
[329624489,1718514687309,-1510.03,0.00022465,3]
[329624490,1718514687320,-1076.28,0.00022465,3]
[329624491,1718514687349,-500.0,0.00022465,3]
[329624492,1718514687363,-500.0,0.00022465,3]
[329624493,1718514687389,-1023.85,0.00022465,3]
[329624494,1718514687402,-500.0,0.00022465,3]
[329624495,1718514687431,-514.32,0.00022465,3]
[329624496,1718514687466,-801.98,0.00022465,3]
[329624497,1718514687485,-500.0,0.00022465,3]
[329624498,1718514687503,-5728.5,0.00022465,3]
[329624499,1718514687528,-526.07,0.00022465,3]
[329624500,1718514687543,-501.51,0.00022465,3]
[329624501,1718514687560,-401.06290079,0.00022465,3]
[329624502,1718514687596,-1246.39,0.00022465,3]
[329624503,1718514687608,-12175.18,0.00022465,3]
[329624504,1718514687625,-1613.0,0.00022465,3]
[329624505,1718514687646,-500.0,0.00022465,3]
[329624506,1718514687657,-918.72,0.00022465,3]
[329624507,1718514687674,-1529.61,0.00022465,3]
[329624508,1718514687688,-2489.26,0.00022465,3]
[329624509,1718514687701,-771.85,0.00022465,3]
[329624510,1718514687714,-500.0,0.00022465,3]
[329624511,1718514687743,-500.0,0.00022465,3]
[329624512,1718514687757,-168.51234283,0.00022465,3]
[329624513,1718514687792,-1085.72,0.00022465,3]
[329624514,1718514687833,-805.42,0.00022465,3]
[329624515,1718514687846,-858.88019572,0.00022495,3]
[329624516,1718514687864,-1372.66042613,0.000225,2]
[329624517,1718514687881,-260.0,0.0002257,2]
[329624518,1718514687899,-152.0,0.0002258,3]
[329624519,1718514687917,-14649.26280232,0.00022598,2]
[329624520,1718514687943,-183.70473488,0.00022639,2]
[329624521,1718514687961,-17158.11813044,0.00022639,2]
[329624522,1718514687981,-184.82126665,0.00022639,2]
[329624523,1718514687994,-1557.09414702,0.00022639,2]
[329624524,1718514688007,-150.0,0.0002269,2]
[329624525,1718514688023,-291.0,0.000227,2]
[329624526,1718514688046,-583.0,0.000227,2]
[329624527,1718514688073,-583.0,0.000227,2]
[329624528,1718514688105,-150.0,0.000227,3]
[329624529,1718514688118,-150.0,0.000227,3]
[329624530,1718514688161,-407.19498711,0.00022716,2]
[329624531,1718514688174,-500.0,0.00022722,3]
[329624532,1718514688189,-200.41722801,0.00022723,2]
[329624533,1718514688212,-1046.42899765,0.00022723,2]
[329624534,1718514688244,-500.0,0.00022723,2]
[329624535,1718514688256,-2000.0,0.00022723,2]
[329624536,1718514688268,-200.0,0.00022723,2]
[329624537,1718514688281,-59746.541818,0.00022723,2]
[329624538,1718514688296,-500.0,0.00022723,2]
[329624539,1718514688312,-2932.91856,0.00022723,2]
[329624540,1718514688336,-4965.89494,0.00022723,2]
[329624541,1718514688355,-19318.2023443,0.00022723,2]
[329624542,1718514688367,-472.6821797,0.00022723,2]
[329624543,1718514688380,-35548.8632011,0.00022723,2]
[329624544,1718514688394,-500.0,0.00022738,3]
[329624545,1718514688407,-500.0,0.00022738,3]
[329624546,1718514688421,-500.0,0.00022738,3]
[329624547,1718514688446,-500.0,0.00022738,3]
[329624548,1718514688465,-218.0,0.00022739,2]
[329624549,1718514688478,-218.0,0.00022739,2]
[329624550,1718514688491,-221.0,0.00022739,2]
[329624551,1718514688506,-221.0,0.00022739,2]
[329624552,1718514688522,-221.0,0.00022739,2]
[329624553,1718514688539,-221.0,0.00022739,2]
[329624554,1718514688568,-221.0,0.00022739,2]
[329624555,1718514688580,-204.0,0.00022739,2]
[329624556,1718514688595,-204.0,0.00022739,2]
[329624557,1718514688609,-227.0,0.00022739,2]
[329624558,1718514688624,-500.0,0.00022739,3]
[329624559,1718514688639,-500.0,0.00022739,3]
[329624560,1718514688651,-500.0,0.00022739,3]
[329624561,1718514688681,-500.0,0.00022739,3]
[329624562,1718514688696,-500.0,0.00022739,3]
[329624563,1718514688711,-500.0,0.00022739,3]
[329624564,1718514688731,-500.0,0.00022739,3]
[329624565,1718514688751,-500.0,0.00022739,3]
[329624566,1718514688762,-500.0,0.00022739,3]
[329624567,1718514688784,-500.0,0.00022739,3]
[329624568,1718514688808,-500.0,0.00022739,3]
[329624569,1718514688825,-500.0,0.00022739,3]
[329624570,1718514688837,-512.9641729,0.00022739,3]
[329624571,1718514688869,-500.0,0.00022739,3]
[329624572,1718514688891,-500.0,0.00022739,3]
[329624573,1718514688919,-500.0,0.00022739,3]
[329624574,1718514688934,-500.0,0.00022739,3]
[329624575,1718514688948,-529.42138639,0.00022739,3]
[329624576,1718514688965,-1006.68,0.00022739,3]
[329624577,1718514688994,-810.35,0.00022739,3]
[329624578,1718514689020,-517.07091418,0.00022739,3]
[329624579,1718514689056,-500.0,0.00022739,3]
[329624580,1718514689072,-500.0,0.00022739,3]
[329624581,1718514689101,-494.11012322,0.00022739,3]
[329624582,1718514689113,-731.88,0.00022739,3]
[329624583,1718514689124,-500.0,0.00022739,3]
[329624584,1718514689148,-500.0,0.00022739,3]
[329624585,1718514689166,-681.94,0.00022739,3]
[329624586,1718514689178,-627.82,0.00022739,3]
[329624587,1718514689188,-536.58,0.00022739,3]
[329624588,1718514689199,-500.0,0.00022739,3]
[329624589,1718514689210,-500.0,0.00022739,3]
[329624590,1718514689226,-500.0,0.00022739,3]
[329624591,1718514689516,-500.0,0.00022739,3]
[329624592,1718514689533,-500.0,0.00022739,3]
[329624593,1718514689548,-901.46,0.00022739,3]
[329624594,1718514689574,-500.0,0.00022739,3]
[329624595,1718514689585,-500.0,0.00022739,3]
[329624596,1718514689604,-2047.36,0.00022739,3]
[329624597,1718514689619,-500.0,0.00022739,3]
[329624598,1718514689636,-500.0,0.00022739,3]
[329624599,1718514689654,-500.0,0.00022739,3]
[329624600,1718514689671,-500.0,0.00022739,3]
[329624601,1718514689682,-500.0,0.00022739,3]
[329624602,1718514689695,-500.0,0.00022739,3]
[329624603,1718514689726,-500.0,0.00022739,3]
[329624604,1718514689740,-500.0,0.00022739,3]
[329624605,1718514689764,-843.71,0.00022739,3]
[329624606,1718514689776,-506.67988911,0.00022739,3]
[329624607,1718514689789,-500.0,0.00022739,3]
[329624608,1718514689802,-500.0,0.00022739,3]
[329624609,1718514689819,-500.0,0.00022739,3]
[329624610,1718514689837,-500.0,0.00022739,3]
[329624611,1718514689849,-513.2,0.00022739,3]
[329624612,1718514689864,-500.0,0.00022739,2]
[329624613,1718514689876,-500.0,0.00022739,2]
[329624614,1718514689909,-500.0,0.00022739,2]
[329624615,1718514689920,-500.0,0.00022739,2]
[329624616,1718514689932,-500.0,0.00022739,2]
[329624617,1718514689942,-500.0,0.00022739,2]
[329624618,1718514689952,-500.0,0.00022739,2]
[329624619,1718514689964,-1056.47,0.00022739,3]
[329624620,1718514689978,-500.0,0.00022739,3]
[329624621,1718514689989,-500.0,0.00022739,3]
[329624622,1718514690002,-500.0,0.00022739,3]
[329624623,1718514690020,-906.02,0.00022739,3]
[329624624,1718514690041,-500.0,0.00022739,2]
[329624625,1718514690064,-500.0,0.00022739,2]
[329624626,1718514690074,-500.0,0.00022739,2]
[329624627,1718514690112,-500.0,0.00022739,2]
[329624628,1718514690150,-500.0,0.00022739,3]
[329624629,1718514690164,-500.0,0.00022739,2]
[329624630,1718514690178,-500.0,0.00022739,2]
[329624631,1718514690194,-500.0,0.00022739,3]
[329624632,1718514690213,-500.0,0.00022739,2]
[329624633,1718514690227,-500.0,0.00022739,2]
[329624634,1718514690239,-500.0,0.00022739,2]
[329624635,1718514690252,-500.0,0.00022739,2]
[329624636,1718514690264,-500.0,0.00022739,2]
[329624637,1718514690278,-500.0,0.00022739,2]
[329624638,1718514690291,-500.0,0.00022739,3]
[329624639,1718514690312,-500.0,0.00022739,2]
[329624640,1718514690323,-500.0,0.00022739,3]
[329624641,1718514690336,-500.08,0.00022739,3]
[329624642,1718514690356,-500.0,0.00022739,3]
[329624643,1718514690370,-500.0,0.00022739,2]
[329624644,1718514690384,-500.0,0.00022739,2]
[329624645,1718514690396,-500.0,0.00022739,3]
[329624646,1718514690411,-500.0,0.00022739,2]
[329624647,1718514690422,-500.0,0.00022739,2]
[329624648,1718514690435,-500.0,0.00022739,3]
[329624649,1718514690477,-500.0,0.00022739,2]
[329624650,1718514690489,-500.0,0.00022739,3]
[329624651,1718514690506,-500.0,0.00022739,2]
[329624652,1718514690519,-500.0,0.00022739,2]
[329624653,1718514690531,-500.0,0.00022739,2]
[329624654,1718514690551,-500.0,0.00022739,2]
[329624655,1718514690562,-500.0,0.00022739,2]
[329624656,1718514690575,-500.0,0.00022739,2]
[329624657,1718514690587,-530.50838291,0.00022739,3]
[329624658,1718514690614,-500.0,0.00022739,2]
[329624659,1718514690630,-500.0,0.00022739,2]
[329624660,1718514690645,-500.0,0.00022739,2]
[329624661,1718514690662,-500.0,0.00022739,2]
[329624662,1718514690696,-500.0,0.00022739,3]
[329624663,1718514690711,-500.0,0.00022739,2]
[329624664,1718514690737,-500.0,0.00022739,2]
[329624665,1718514690748,-500.0,0.00022739,2]
[329624666,1718514690761,-500.0,0.00022739,2]
[329624667,1718514690778,-500.0,0.00022739,2]
[329624668,1718514690824,-500.0,0.00022739,2]
[329624669,1718514690841,-500.0,0.00022739,2]
[329624670,1718514690861,-500.0,0.00022739,2]
[329624671,1718514690873,-500.0,0.00022739,2]
[329624672,1718514690889,-500.0,0.00022739,2]
[329624673,1718514690911,-500.0,0.00022739,2]
[329624674,1718514690936,-959.23,0.00022739,3]
[329624675,1718514690949,-500.0,0.00022739,2]
[329624676,1718514690963,-500.0,0.00022739,2]
[329624677,1718514690977,-500.0,0.00022739,3]
[329624678,1718514691001,-500.0,0.00022739,2]
[329624679,1718514691032,-500.0,0.00022739,2]
[329624680,1718514691044,-500.0,0.00022739,2]
[329624681,1718514691061,-289.63780859,0.00022739,3]
[329624682,1718514691073,-500.0,0.00022739,2]
[329624683,1718514691101,-500.0,0.00022739,2]
[329624684,1718514691114,-500.0,0.00022739,2]
[329624685,1718514691142,-631.23,0.00022739,3]
[329624686,1718514691157,-500.0,0.00022739,2]
[329624687,1718514691186,-604.51593277,0.00022739,3]
[329624688,1718514691204,-500.0,0.00022739,2]
[329624689,1718514691253,-500.0,0.00022739,2]
[329624690,1718514691265,-500.0,0.00022739,2]
[329624691,1718514691308,-573.44129761,0.00022739,3]
[329624692,1718514691320,-500.0,0.00022739,2]
[329624693,1718514691357,-500.0,0.00022739,2]
[329624694,1718514691369,-500.0,0.00022739,2]
[329624695,1718514691382,-500.0,0.00022739,2]
[329624696,1718514691393,-500.0,0.00022739,2]
[329624697,1718514691405,-500.0,0.00022739,3]
[329624698,1718514691428,-500.0,0.00022739,2]
[329624699,1718514691440,-500.0,0.00022739,2]
[329624700,1718514691474,-500.0,0.00022739,2]
[329624701,1718514691496,-500.0,0.00022739,2]
[329624702,1718514691516,-500.0,0.00022739,2]
[329624703,1718514691532,-500.0,0.00022739,2]
[329624704,1718514691574,-500.0,0.00022739,2]
[329624705,1718514691594,-500.0,0.00022739,3]
[329624706,1718514691605,-666.35,0.00022739,3]
[329624707,1718514691627,-500.0,0.00022739,2]
[329624708,1718514691650,-500.0,0.00022739,2]
[329624709,1718514691677,-500.0,0.00022739,2]
[329624710,1718514691688,-500.0,0.00022739,2]
[329624711,1718514691716,-500.0,0.00022739,2]
[329624712,1718514691729,-500.0,0.00022739,2]
[329624713,1718514691745,-335.41679013,0.00022739,3]
[329624714,1718514691761,-500.0,0.00022739,2]
[329624715,1718514691797,-500.0,0.00022739,2]
[329624716,1718514691824,-500.0,0.00022739,2]
[329624717,1718514691856,-500.0,0.00022739,2]
[329624718,1718514691868,-500.0,0.00022739,2]
[329624719,1718514691880,-500.0,0.00022739,2]
[329624720,1718514691893,-500.0,0.00022739,2]
[329624721,1718514691931,-500.0,0.00022739,3]
[329624722,1718514691966,-500.0,0.00022739,3]
[329624723,1718514691991,-500.0,0.00022739,2]
[329624724,1718514692010,-500.0,0.00022739,2]
[329624725,1718514692027,-500.0,0.00022739,2]
[329624726,1718514692051,-500.0,0.00022739,2]
[329624727,1718514692062,-500.0,0.00022739,2]
[329624728,1718514692112,-500.0,0.00022739,2]
[329624729,1718514692130,-500.0,0.00022739,3]
[329624730,1718514692148,-500.0,0.00022739,2]
[329624731,1718514692159,-500.0,0.00022739,2]
[329624732,1718514692176,-500.0,0.00022739,2]
[329624733,1718514692194,-500.0,0.00022739,2]
[329624734,1718514692228,-639.86,0.00022739,3]
[329624735,1718514692257,-500.0,0.00022739,2]
[329624736,1718514692274,-500.0,0.00022739,3]
[329624737,1718514692293,-500.0,0.00022739,3]
[329624738,1718514692309,-500.0,0.00022739,2]
[329624739,1718514692330,-500.0,0.00022739,2]
[329624740,1718514692345,-500.0,0.00022739,2]
[329624741,1718514692357,-500.0,0.00022739,2]
[329624742,1718514692376,-500.0,0.00022739,2]
[329624743,1718514692391,-500.0,0.00022739,2]
[329624744,1718514692420,-500.0,0.00022739,2]
[329624745,1718514692437,-500.0,0.00022739,2]
[329624746,1718514692447,-500.0,0.00022739,2]
[329624747,1718514692458,-500.0,0.00022739,3]
[329624748,1718514692470,-664.8,0.00022739,3]
[329624749,1718514692482,-500.0,0.00022739,3]
[329624750,1718514692496,-500.0,0.00022739,3]
[329624751,1718514692513,-500.0,0.00022739,3]
[329624752,1718514692535,-500.0,0.00022739,3]
[329624753,1718514692554,-264.21775516,0.00022739,3]
[329624754,1718514692565,-1051.67,0.00022739,3]
[329624755,1718514692581,-961.09,0.00022739,3]
[329624756,1718514692593,-500.0,0.00022739,3]
[329624757,1718514692604,-500.0,0.00022739,3]
[329624758,1718514692632,-500.0,0.00022739,3]
[329624759,1718514692643,-500.0,0.00022739,3]
[329624760,1718514692665,-500.0,0.00022739,3]
[329624761,1718514692678,-1195.84,0.00022739,3]
[329624762,1718514692690,-500.0,0.00022739,3]
[329624763,1718514692704,-500.0,0.00022739,3]
[329624764,1718514692721,-500.0,0.00022739,3]
[329624765,1718514692738,-500.0,0.00022739,3]
[329624766,1718514692752,-770.75,0.00022739,3]
[329624767,1718514692764,-500.0,0.00022739,3]
[329624768,1718514692776,-893.17,0.00022739,3]
[329624769,1718514692793,-500.0,0.00022739,3]
[329624770,1718514692805,-260.0,0.00022739,2]
[329624771,1718514692818,-260.0,0.00022739,2]
[329624772,1718514692830,-260.0,0.00022739,2]
[329624773,1718514692843,-260.0,0.00022739,2]
[329624774,1718514692856,-260.0,0.00022739,2]
[329624775,1718514692872,-500.0,0.00022739,3]
[329624776,1718514692894,-886.11,0.00022739,3]
[329624777,1718514692917,-500.0,0.00022739,3]
[329624778,1718514692932,-618.77,0.00022739,3]
[329624779,1718514692956,-500.0,0.00022739,3]
[329624780,1718514692981,-500.0,0.00022739,3]
[329624781,1718514693011,-500.0,0.00022739,3]
[329624782,1718514693055,-500.0,0.00022739,3]
[329624783,1718514693097,-500.0,0.00022739,3]
[329624784,1718514693121,-985.78,0.00022739,3]
[329624785,1718514693150,-523.0,0.00022739,3]
[329624786,1718514693184,-500.0,0.00022739,3]
[329624787,1718514693196,-835.26,0.00022739,3]
[329624788,1718514693217,-513.36,0.00022739,3]
[329624789,1718514693235,-500.0,0.00022739,3]
[329624790,1718514693256,-500.0,0.00022739,3]
[329624791,1718514693268,-500.0,0.00022739,3]
[329624792,1718514693280,-501.85,0.00022739,3]
[329624793,1718514693293,-518.07533047,0.00022739,3]
[329624794,1718514693306,-989.9,0.00022739,3]
[329624795,1718514693324,-500.0,0.00022739,3]
[329624796,1718514693349,-500.0,0.00022739,3]
[329624797,1718514693362,-500.0,0.00022739,3]
[329624798,1718514693383,-500.0,0.00022739,2]
[329624799,1718514693394,-500.0,0.00022739,2]
[329624800,1718514693407,-500.0,0.00022739,2]
[329624801,1718514693418,-500.0,0.00022739,2]
[329624802,1718514693429,-500.0,0.00022739,2]
[329624803,1718514693441,-500.0,0.00022739,2]
[329624804,1718514693476,-500.0,0.00022739,2]
[329624805,1718514693494,-572.39,0.00022739,3]
[329624806,1718514693505,-500.0,0.00022739,3]
[329624807,1718514693541,-500.0,0.00022739,3]
[329624808,1718514693559,-500.0,0.00022739,2]
[329624809,1718514693622,-500.0,0.00022739,2]
[329624810,1718514693636,-500.0,0.00022739,2]
[329624811,1718514693656,-500.0,0.00022739,2]
[329624812,1718514693670,-500.0,0.00022739,2]
[329624813,1718514693681,-500.0,0.00022739,2]
[329624814,1718514693693,-500.0,0.00022739,2]
[329624815,1718514693706,-500.0,0.00022739,2]
[329624816,1718514693720,-500.0,0.00022739,2]
[329624817,1718514693760,-500.0,0.00022739,2]
[329624818,1718514693777,-500.0,0.00022739,3]
[329624819,1718514693802,-500.0,0.00022739,2]
[329624820,1718514693836,-500.0,0.00022739,2]
[329624821,1718514693850,-500.0,0.00022739,2]
[329624822,1718514693866,-634.14,0.00022739,3]
[329624823,1718514693877,-500.0,0.00022739,2]
[329624824,1718514693898,-500.0,0.00022739,3]
[329624825,1718514693921,-500.0,0.00022739,2]
[329624826,1718514693933,-500.0,0.00022739,2]
[329624827,1718514693946,-408.11241672,0.00022739,3]
[329624828,1718514693956,-500.0,0.00022739,2]
[329624829,1718514693970,-500.0,0.00022739,3]
[329624830,1718514693982,-500.0,0.00022739,3]
[329624831,1718514694000,-500.0,0.00022739,3]
[329624832,1718514694086,-508.55,0.00022739,3]
[329624833,1718514694129,-500.0,0.00022739,3]
[329624834,1718514694142,-578.78,0.00022739,3]
[329624835,1718514694155,-500.0,0.00022739,3]
[329624836,1718514694166,-500.0,0.00022739,3]
[329624837,1718514694184,-500.0,0.00022739,3]
[329624838,1718514694197,-500.0,0.00022739,3]
[329624839,1718514694208,-623.1,0.00022739,3]
[329624840,1718514694247,-500.0,0.00022739,3]
[329624841,1718514694260,-500.0,0.00022739,3]
[329624842,1718514694271,-500.0,0.00022739,3]
[329624843,1718514694282,-500.0,0.00022739,3]
[329624844,1718514694293,-500.0,0.00022739,3]
[329624845,1718514694315,-558.36,0.00022739,3]
[329624846,1718514694328,-500.0,0.00022739,3]
[329624847,1718514694341,-692.22,0.00022739,3]
[329624848,1718514694356,-500.0,0.00022739,3]
[329624849,1718514694369,-500.0,0.00022739,3]
[329624850,1718514694381,-500.0,0.00022739,3]
[329624851,1718514694394,-679.49,0.00022739,3]
[329624852,1718514694409,-500.0,0.00022739,3]
[329624853,1718514694431,-537.34930475,0.00022739,3]